bitfinex-derivatives/quotes_ETHF0:USTF0_20250507
["timestamp","ask_amount","ask_price","bid_price","bid_amount"]
[1746655972307,2.5933,1815.4,1815.2,3.2078]
[1746655972607,1.10158,1815.3,1815.2,4.30938]
[1746655972802,1.7065,1815.3,1815.0,3.2078]
[1746655973011,1.1017,1815.1,1815.0,4.30954]
[1746655973508,1.7065,1815.1,1815.0,4.30954]
[1746655975012,2.8082,1815.1,1815.0,4.30954]
[1746655975306,1.7065,1815.1,1815.0,4.30954]
[1746655975503,2.8082,1815.1,1815.0,4.30954]
[1746655975701,1.7065,1815.1,1815.0,4.30954]
[1746655976104,2.8082,1815.1,1815.0,4.30954]
[1746655976304,1.7065,1815.1,1815.0,4.30954]
[1746655976908,1.7065,1815.1,1814.8,4.38968]
[1746655976909,1.10189,1814.9,1814.8,4.30966]
[1746655978307,2.72639,1814.9,1814.8,4.30966]
[1746655978502,2.72639,1814.9,1814.8,3.2078]
[1746655978907,1.10188,1814.8,1814.7,1.10189]
[1746655979111,1.10194,1814.7,1814.6,4.30975]
[1746655979710,1.6245,1814.8,1814.6,3.2078]
[1746655979909,2.72643,1814.8,1814.7,1.10194]
[1746655980814,1.10194,1814.7,1814.6,4.30974]
[1746655981002,2.72654,1814.7,1814.6,4.30974]
[1746655981715,1.6246,1814.7,1814.6,4.30974]
[1746655982022,2.72654,1814.7,1814.6,4.30974]
[1746655983614,2.72654,1814.7,1814.6,3.2078]
[1746655984306,2.75504,1814.6,1814.4,3.2078]
[1746655984511,2.75554,1814.3,1814.0,9.68111]
[1746655984713,1.1023,1814.1,1814.0,3.2078]
[1746655985015,1.1023,1814.1,1814.0,4.31017]
[1746655985205,1.991,1814.1,1814.0,4.31017]
[1746655985406,3.6335,1814.1,1814.0,4.31017]
[1746655985711,3.6335,1814.1,1814.0,3.2078]
[1746655987812,2.5312,1814.1,1813.8,3.2078]
[1746655988013,2.5312,1814.1,1813.7,42.4461]
[1746655988014,1.10249,1813.8,1813.7,1.10254]
[1746655988209,1.10255,1813.7,1813.6,12.12953315]
[1746655988415,1.10255,1813.7,1813.6,1.10258]
[1746655989118,1.10261,1813.6,1813.5,46.84302]
[1746655989622,1.1026,1813.7,1813.6,1.10259]
[1746655989821,2.7789,1813.7,1813.6,1.10259]
[1746655990718,2.77891,1813.7,1813.6,1.10261]
[1746655993320,1.10261,1813.6,1813.5,4.9404]
[1746655993624,1.10273,1813.4,1813.3,4.31054]
[1746655994018,1.10273,1813.4,1813.3,3.2078]
[1746655994224,2.78543,1813.4,1813.3,3.2078]
[1746655994620,2.78543,1813.4,1813.1,5.372]
[1746655994621,1.10285,1813.2,1813.1,3.2078]
[1746655995019,2.78555,1813.2,1813.1,3.2078]
[1746655995918,1.10297,1813.0,1812.9,4.3108]
[1746655996727,1.10297,1813.0,1812.9,3.2078]
[1746655996919,1.10303,1812.9,1812.8,2.7445]
[1746655997120,1.10316,1812.8,1812.7,1.10313]
[1746655997427,1.10316,1812.8,1812.7,41.90313]
[1746655997627,1.10316,1812.8,1812.7,43.66453]
[1746655999429,5.239,1813.2,1812.8,2.75763]
[1746655999625,1.6227,1813.1,1813.0,3.2078]
[1746655999824,2.72561,1813.1,1813.0,4.31077]
[1746656000928,2.72561,1813.1,1813.0,3.2078]
[1746656004129,1.10297,1813.0,1812.9,1.10302]
[1746656004329,2.76487,1813.0,1812.9,4.31082]
[1746656004629,2.76487,1813.0,1812.9,3.2078]
[1746656005529,2.76487,1813.0,1812.9,4.31083]
[1746656006528,2.76487,1813.0,1812.9,3.2078]
[1746656007133,2.76487,1813.0,1812.9,4.31083]
[1746656007832,2.76487,1813.0,1812.9,3.2078]
[1746656008030,2.76487,1813.0,1812.9,4.31083]
[1746656009533,2.76487,1813.0,1812.9,3.2078]
[1746656014438,1.10303,1812.9,1812.8,1.10308]
[1746656014642,2.81863,1812.9,1812.8,1.10308]
[1746656016232,1.7156,1812.9,1812.7,3.2078]
[1746656016442,1.1031,1812.8,1812.7,4.31092]
[1746656016935,2.8187,1812.8,1812.7,3.2078]
[1746656017939,2.8187,1812.8,1812.7,4.31096]
[1746656018538,2.8187,1812.8,1812.7,5.03041953]
[1746656018837,2.8187,1812.8,1812.7,6.75731953]
[1746656020341,1.96538,1812.9,1812.8,1.1031]
[1746656020636,1.10308,1812.9,1812.8,1.82286048]
[1746656021839,1.10308,1812.9,1812.8,2.54612429]
[1746656022238,1.10308,1812.9,1812.8,2.54692865]
[1746656022834,3.2078,1814.4,1812.9,17.8748]
[1746656023040,3.208,1814.4,1814.3,1.10218]
[1746656023232,3.208,1814.5,1814.4,1.10212]
[1746656023432,3.208,1814.5,1814.4,1.8217338]
[1746656023737,3.208,1814.5,1814.4,1.81968773]
[1746656023931,3.208,1814.5,1814.4,1.81963124]
[1746656024126,3.208,1814.5,1814.4,2.53972356]
[1746656024338,3.208,1814.5,1814.4,2.55105278]
[1746656024540,3.208,1814.5,1814.4,2.55111089]
[1746656025127,3.208,1814.5,1814.4,1.10212]
[1746656025333,3.208,1814.5,1814.4,1.8295546]
[1746656025528,3.208,1814.5,1814.4,1.82947433]
[1746656025734,6.05416,1814.5,1814.3,45.10995]
[1746656025933,6.05416,1814.5,1814.3,44.0078]
[1746656026239,6.05416,1814.5,1814.3,45.10994]
[1746656026441,6.05416,1814.5,1814.4,1.10212]
[1746656027144,4.9521,1814.5,1814.4,1.10212]
[1746656027831,1.10212,1814.4,1814.3,44.0078]
[1746656028139,2.76142,1814.4,1814.3,4.30998]
[1746656029044,2.76142,1814.4,1814.3,3.2078]
[1746656031745,2.76142,1814.4,1814.3,4.30998]
[1746656033742,2.76142,1814.4,1814.3,3.2078]
[1746656034249,1.10237,1814.0,1813.9,3.2078]
[1746656035245,2.76677,1814.0,1813.9,3.2078]
[1746656036151,3.63367,1814.0,1813.9,3.2078]
[1746656036550,1.10255,1813.8,1813.7,3.2078]
[1746656036749,1.10267,1813.6,1813.5,3.2078]
[1746656037151,1.10267,1813.6,1813.5,4.31047]
[1746656037949,1.10267,1813.6,1813.5,3.2078]
[1746656038152,1.10273,1813.4,1813.3,3.2078]
[1746656038545,2.83813,1813.4,1813.3,3.2078]
[1746656039144,3.70633,1813.4,1813.3,3.2078]
[1746656039550,1.7354,1813.4,1813.3,4.31059]
[1746656040252,1.10273,1813.4,1813.3,3.2078]
[1746656041148,1.10273,1813.4,1813.3,4.31056]
[1746656041953,1.10271,1813.5,1813.4,1.10268]
[1746656042148,1.6168,1813.5,1813.3,4.7116]
[1746656042455,1.10273,1813.4,1813.3,5.81433]
[1746656043964,3.208,1815.7,1814.2,3.2078]
[1746656044263,1.6168,1815.4,1814.7,2.75479]
[1746656044563,2.71832,1815.4,1815.3,3.2078]
[1746656044751,4.8248,1815.4,1815.0,3.2078]
[1746656045061,1.10166,1815.2,1815.0,3.2078]
[1746656045255,1.6554,1815.1,1815.0,4.30956]
[1746656045454,1.6554,1815.1,1815.0,3.2078]
[1746656045962,2.7571,1815.1,1815.0,3.2078]
[1746656049362,1.6554,1815.1,1815.0,4.30956]
[1746656050461,1.6554,1815.1,1815.0,3.2078]
[1746656050660,1.6554,1815.1,1815.0,4.30956]
[1746656050860,2.7571,1815.1,1815.0,3.2078]
[1746656051061,2.7571,1815.1,1815.0,4.30956]
[1746656051465,1.6554,1815.1,1815.0,4.30956]
[1746656051961,2.7571,1815.1,1815.0,4.30956]
[1746656052164,2.7571,1815.1,1815.0,3.2078]
[1746656053463,1.10186,1814.9,1814.8,3.2078]
[1746656053659,1.10186,1814.9,1814.8,4.30966]
[1746656054961,4.30986,1814.9,1814.8,3.2078]
[1746656055164,1.10194,1814.8,1814.7,1.10193]
[1746656055364,1.10194,1814.7,1814.6,4.30976]
[1746656055865,1.10218,1814.4,1814.3,1.10216]
[1746656056067,1.10221,1814.3,1814.2,1.1022]
[1746656056257,2.86671,1814.3,1814.2,1.1022]
[1746656057069,1.10224,1814.2,1814.1,4.31007]
[1746656057364,2.86674,1814.2,1814.1,4.31007]
[1746656059170,1.7645,1814.2,1814.1,4.31007]
[1746656059367,1.10224,1814.3,1814.2,1.10224]
[1746656060465,1.10224,1814.2,1814.1,4.31006]
[1746656060662,2.87034,1814.2,1814.1,4.31006]
[1746656060969,1.7681,1814.2,1814.1,4.31006]
[1746656061167,2.87034,1814.2,1814.1,4.31006]
[1746656062070,1.10237,1814.0,1813.9,1.1024]
[1746656062266,4.31037,1814.0,1813.9,4.3102]
[1746656063364,4.31037,1814.0,1813.7,3.2078]
[1746656063365,1.10254,1813.8,1813.7,3.2078]
[1746656063565,1.10254,1813.8,1813.7,4.31031]
[1746656064367,4.31054,1813.8,1813.7,3.2078]
[1746656064574,5.16304,1813.8,1813.7,3.2078]
[1746656064760,5.16304,1813.8,1813.7,4.31035]
[1746656066973,5.16304,1813.8,1813.5,3.2078]
[1746656067168,1.10273,1813.4,1813.3,3.31809614]
[1746656067367,4.31073,1813.4,1813.3,0.11029614]
[1746656067670,1.10285,1813.2,1813.1,3.2078]
[1746656067870,3.66684,1813.3,1813.1,4.31071]
[1746656068565,1.10285,1813.2,1813.1,4.31071]
[1746656068870,2.78355,1813.2,1813.1,4.31071]
[1746656069070,2.78355,1813.2,1813.1,3.2078]
[1746656069272,2.78355,1813.2,1813.1,4.31071]
[1746656069470,2.78355,1813.2,1813.1,3.2078]
[1746656071063,5.99155,1813.2,1813.1,3.2078]
[1746656071265,5.99155,1813.2,1812.9,25.819]
[1746656071266,1.10297,1813.0,1812.9,30.12983]
[1746656071475,1.10297,1813.0,1812.9,24.61083]
[1746656071676,1.10297,1813.0,1812.9,23.5078]
[1746656071972,1.10297,1813.0,1812.9,3.2078]
[1746656073068,4.31097,1813.0,1812.9,3.2078]
[1746656073266,2.75759,1812.9,1812.5,3.2078]
[1746656073565,1.10319,1812.7,1812.6,1.10318]
[1746656073770,1.10319,1812.7,1812.6,3.2078]
[1746656073960,2.84689,1812.7,1812.6,3.2078]
[1746656074163,2.75814,1812.6,1812.4,3.2078]
[1746656074364,2.84698,1812.5,1812.4,3.2078]
[1746656074565,6.05498,1812.5,1812.4,3.2078]
[1746656078171,3.208,1812.5,1812.4,9.31114]
[1746656078367,3.208,1812.5,1812.4,10.81494]
[1746656079373,3.208,1812.5,1812.4,5.81494]
[1746656080780,3.208,1812.5,1812.4,10.81494]
[1746656080980,3.208,1812.7,1812.6,1.10322]
[1746656081281,3.208,1812.7,1812.6,4.31102]
[1746656081881,3.208,1812.7,1812.6,5.81512]
[1746656083373,4.31116,1812.7,1812.6,5.81512]
[1746656084377,3.208,1812.7,1812.6,4.31102]
[1746656084680,4.31116,1812.7,1812.6,4.31102]
[1746656087283,4.31116,1812.7,1812.6,3.2078]
[1746656088284,5.96466,1812.7,1812.6,3.2078]
[1746656088580,10.96466,1812.7,1812.6,3.2078]
[1746656088785,1.10334,1812.4,1812.3,4.31116]
[1746656089778,2.75684,1812.4,1812.3,4.31116]
[1746656091189,2.75684,1812.4,1812.3,5.03975812]
[1746656091384,1.1034,1812.3,1812.1,3.2078]
[1746656091683,1.1034,1812.3,1812.2,1.10345]
[1746656093384,1.1034,1812.3,1812.2,1.83326671]
[1746656094893,3.36753482,1814.0,1812.6,5.515]
[1746656095079,3.2078,1813.6,1813.3,1.10279]
[1746656095390,3.2078,1813.6,1813.4,1.10273]
[1746656095786,3.20800394,1813.5,1813.4,1.10273]
[1746656096285,4.31072394,1813.5,1813.4,0.73028139]
[1746656096479,4.31072394,1813.5,1813.4,1.83300068]
[1746656097290,4.31072394,1813.5,1813.4,1.10273]
[1746656097479,4.31072394,1813.5,1813.4,1.83544379]
[1746656097891,1.10285,1813.2,1813.1,23.5078]
[1746656098092,3.20800394,1813.3,1813.2,1.10285]
[1746656098279,3.20800394,1813.3,1813.2,1.83561523]
[1746656098484,3.20800394,1813.3,1813.2,0.73282378]
[1746656098485,4.31082394,1813.3,1813.2,0.73282378]
[1746656098685,4.31082394,1813.3,1813.2,1.83567378]
[1746656100089,4.31082394,1813.3,1813.2,0.73282378]
[1746656100291,4.31082394,1813.3,1812.9,3.2078]
[1746656100292,1.10291,1813.1,1812.9,3.2078]
[1746656100592,1.10208,1814.5,1813.7,2.75638]
[1746656100792,3.20800394,1814.4,1814.3,1.10213]
[1746656101092,1.1021,1814.5,1814.3,0.73268491]
[1746656101293,3.20800394,1814.4,1814.2,3.2078]
[1746656101487,0.8794,1814.5,1814.4,1.10212]
[1746656101795,3.20800394,1814.3,1814.1,1.10227]
[1746656101991,3.20800394,1814.2,1814.1,1.10227]
[1746656102185,3.20800394,1814.2,1814.1,1.83596676]
[1746656102384,1.10223,1814.3,1814.1,1.10227]
[1746656102587,3.20800394,1814.2,1814.1,1.10227]
[1746656102989,4.31024394,1814.2,1814.0,4.31012]
[1746656103290,1.10224,1814.2,1814.0,4.31012]
[1746656103695,4.31030394,1814.1,1814.0,3.2078]
[1746656103884,3.20800394,1814.1,1813.8,10.9078]
[1746656104082,4.31031394,1814.1,1813.9,1.10239]
[1746656104283,4.31037394,1814.0,1813.8,10.9078]
[1746656104486,3.20800394,1814.0,1813.9,1.10243]
[1746656104687,1.10235,1814.1,1813.9,1.10243]
[1746656104896,4.31037394,1814.0,1813.8,4.31025]
[1746656105087,3.20800394,1814.0,1813.9,1.10243]
[1746656105393,1.10236,1814.1,1813.8,3.2078]
[1746656105596,3.20800394,1814.0,1813.9,1.10243]
[1746656106092,1.10238,1814.0,1813.8,3.2078]
[1746656106292,1.10243,1813.9,1813.8,4.31025]
[1746656106492,3.20800394,1813.9,1813.6,3.2078]
[1746656106686,4.31053394,1813.8,1813.7,1.10255]
[1746656106882,3.20800394,1813.8,1813.7,1.10255]
[1746656107089,0.816,1813.9,1813.8,1.10249]
[1746656107290,0.8081,1814.2,1814.1,1.1023]
[1746656107492,1.1023,1814.1,1814.0,3.2078]
[1746656107697,1.1023,1814.1,1814.0,4.31017]
[1746656107998,4.31030394,1814.1,1814.0,4.31017]
[1746656108294,4.31030394,1814.1,1814.0,3.2078]
[1746656108693,6.07060394,1814.1,1814.0,4.31017]
[1746656108894,6.07060394,1814.1,1814.0,3.2078]
[1746656109201,1.10245,1813.9,1813.8,3.2078]
[1746656109491,3.20800394,1813.9,1813.8,4.31026]
[1746656109889,4.88910394,1813.9,1813.8,4.31026]
[1746656110096,5.99153394,1813.9,1813.8,4.31026]
[1746656110398,4.88910394,1813.9,1813.8,4.31026]
[1746656112801,5.99153394,1813.9,1813.8,4.31026]
[1746656113401,1.10251,1813.8,1813.7,1.10249]
[1746656113700,4.83100394,1813.8,1813.7,1.10249]
[1746656113902,1.623,1813.8,1813.7,1.10249]
[1746656114803,2.72549,1813.8,1813.7,1.10249]
[1746656115408,1.623,1813.8,1813.7,1.10249]
[1746656116499,2.72549,1813.8,1813.7,1.10249]
[1746656116800,1.623,1813.8,1813.7,1.10249]
[1746656118004,5.93349394,1813.8,1813.7,1.10249]
[1746656119501,1.10255,1813.7,1813.6,4.31037]
[1746656119702,1.10267,1813.6,1813.4,3.2078]
[1746656119909,6.05017394,1813.5,1813.4,4.31053]
[1746656120602,6.05017394,1813.5,1813.4,3.2078]
[1746656120801,1.10279,1813.4,1813.3,1.10274]
[1746656120998,1.10279,1813.4,1813.2,4.31062]
[1746656120999,1.10279,1813.3,1813.2,4.31062]
[1746656121201,1.10279,1813.3,1813.1,5.405]
[1746656121202,1.10285,1813.2,1813.1,1.10287]
[1746656121402,6.88835394,1813.2,1813.1,1.10287]
[1746656121603,6.88835394,1813.2,1813.1,4.31067]
[1746656122011,1.10297,1813.1,1813.0,1.10297]
[1746656122211,2.79227,1813.1,1813.0,1.10297]
[1746656122414,6.00027394,1813.1,1813.0,1.10297]
[1746656123214,6.00021394,1813.1,1813.0,1.10297]
[1746656124012,1.1031,1812.8,1812.7,3.2078]
[1746656124216,4.31110394,1812.8,1812.7,5.04463186]
[1746656125016,4.31110394,1812.8,1812.7,5.04375245]
[1746656125208,4.31110394,1812.8,1812.7,3.2078]
[1746656125414,4.31110394,1812.8,1812.7,3.94068714]
[1746656126020,3.20800394,1812.8,1812.7,5.04384714]
[1746656126408,4.88440394,1812.8,1812.7,5.04384714]
[1746656126817,1.6764,1812.8,1812.7,5.04384714]
[1746656127019,1.99112,1813.2,1813.1,1.10291]
[1746656127214,5.19912394,1813.2,1813.1,4.31071]
[1746656127415,5.19912394,1813.2,1813.1,3.2078]
[1746656128317,5.19912394,1813.2,1813.1,4.31071]
[1746656128520,6.81462394,1813.2,1813.1,4.31071]
[1746656129017,6.81462394,1813.2,1813.1,3.2078]
[1746656130622,1.10297,1813.0,1812.9,3.2078]
[1746656130814,4.31097394,1813.0,1812.9,3.2078]
[1746656132423,4.31097394,1813.0,1812.9,4.31083]
[1746656132823,1.10306,1812.9,1812.8,1.10303]
[1746656133123,6.05166394,1812.9,1812.8,1.10303]
[1746656135024,1.1031,1812.8,1812.7,4.31093]
[1746656135219,6.09560394,1812.8,1812.7,3.2078]
[1746656135813,1.7845,1812.8,1812.7,4.31096]
[1746656136023,1.7845,1812.8,1812.7,5.04137719]
[1746656136412,2.8876,1812.8,1812.7,5.81376]
[1746656136617,2.8876,1812.8,1812.7,4.31096]
[1746656136818,1.7845,1812.8,1812.7,4.31096]
[1746656137021,2.8876,1812.8,1812.7,4.31096]
[1746656137623,6.09560394,1812.8,1812.7,4.31096]
[1746656137824,1.10322,1812.6,1812.5,1.10327]
[1746656138024,4.31122394,1812.6,1812.5,1.10327]
[1746656138326,1.10322,1812.6,1812.5,1.10327]
[1746656138522,2.82442,1812.6,1812.5,1.10327]
[1746656138919,6.03242394,1812.6,1812.5,1.10327]
[1746656139320,4.92920394,1812.6,1812.5,1.10327]
[1746656139520,6.03242394,1812.6,1812.5,1.10327]
[1746656143630,4.92920394,1812.6,1812.5,1.10327]
[1746656143824,1.7212,1812.6,1812.5,1.10327]
[1746656144328,1.7212,1812.6,1812.5,3.33771522]
[1746656145130,2.7343,1812.8,1812.7,1.10316]
[1746656145328,2.7343,1812.8,1812.7,5.04298525]
[1746656146233,1.6312,1812.8,1812.7,5.04298525]
[1746656146526,2.7343,1812.8,1812.7,5.04298525]
[1746656148635,5.94230394,1812.8,1812.7,3.2078]
[1746656148832,5.94230394,1812.8,1812.7,4.31096]
[1746656149234,5.94230394,1812.8,1812.7,5.04535791]
[1746656150635,1.10322,1812.6,1812.5,4.31103]
[1746656150931,4.31122394,1812.6,1812.5,3.94241297]
[1746656151133,4.31122394,1812.6,1812.5,5.04569297]
[1746656151733,4.31122394,1812.6,1812.5,5.77358788]
[1746656152634,1.10322,1812.6,1812.5,5.77358788]
[1746656152836,4.31122394,1812.6,1812.5,5.77358788]
[1746656154233,4.31122394,1812.6,1812.5,4.67030788]
[1746656155239,4.31122394,1812.6,1812.4,1.10332]
[1746656155240,1.10328,1812.5,1812.4,1.10332]
[1746656155437,2.81848,1812.5,1812.4,1.83840104]
[1746656155637,6.02648394,1812.5,1812.4,1.83840104]
[1746656156740,6.02648394,1812.5,1812.4,1.83787323]
[1746656157839,6.02648394,1812.5,1812.4,0.73455323]
[1746656158640,1.10334,1812.4,1812.3,4.31116]
[1746656158939,6.82224394,1812.4,1812.3,5.04577604]
[1746656159141,6.82224394,1812.4,1812.3,5.77367692]
[1746656159142,3.61424,1812.4,1812.3,5.77367692]
[1746656159535,6.82224394,1812.4,1812.3,5.77367692]
[1746656160439,6.82224394,1812.4,1812.3,4.67031692]
[1746656160735,1.10346,1812.2,1812.1,3.2078]
[1746656160942,1.10346,1812.2,1812.1,5.04640128]
[1746656161140,4.31146394,1812.2,1812.1,5.04640128]
[1746656161639,4.31146394,1812.2,1812.1,4.31132]
[1746656161838,4.31146394,1812.2,1812.1,5.04581446]
[1746656162740,3.61429,1812.4,1812.3,1.1034]
[1746656163042,6.82229394,1812.4,1812.3,1.83750999]
[1746656163444,1.10346,1812.3,1812.2,1.10342]
[1746656163645,6.03776394,1812.3,1812.2,1.83748818]
[1746656163945,6.03776394,1812.3,1812.2,1.83749688]
[1746656164242,6.03776394,1812.3,1812.2,1.83746073]
[1746656164740,6.03776394,1812.3,1812.2,1.83739856]
[1746656165346,6.03776394,1812.3,1812.2,1.83736592]
[1746656166148,1.7263,1812.3,1812.2,1.83736592]
[1746656166538,1.7263,1812.3,1812.2,3.33996592]
[1746656166940,2.8297,1812.3,1812.2,1.83736592]
[1746656167345,1.7263,1812.3,1812.2,1.83779704]
[1746656168548,1.7263,1812.3,1812.2,3.34089704]
[1746656169043,1.96094,1812.6,1812.3,1.1034]
[1746656169250,1.96094,1812.6,1812.5,1.10328]
[1746656169451,5.16894394,1812.6,1812.5,1.83770238]
[1746656170745,6.85864394,1812.6,1812.5,1.83770238]
[1746656172154,6.00094394,1812.6,1812.5,1.83770238]
[1746656174753,6.00094394,1812.6,1812.5,1.10328]
[1746656175049,6.00094394,1812.6,1812.5,1.83772083]
[1746656175759,6.00094394,1812.6,1812.5,0.73444083]
[1746656176053,1.10328,1812.5,1812.4,3.2078]
[1746656176254,5.98218394,1812.5,1812.4,3.2078]
[1746656176953,5.98218394,1812.5,1812.4,4.31114]
[1746656177153,5.98218394,1812.5,1812.4,5.04506548]
[1746656178046,5.98218394,1812.5,1812.4,3.94172548]
[1746656178351,5.98218394,1812.5,1812.4,0.73392548]
[1746656178656,1.1034,1812.3,1812.2,1.10344]
[1746656178858,4.31140394,1812.3,1812.2,1.83798113]
[1746656179551,4.31140394,1812.3,1812.2,5.04578113]
[1746656179753,5.96770394,1812.3,1812.2,5.04578113]
[1746656179953,5.96770394,1812.3,1812.2,5.04580113]
[1746656181258,5.96770394,1812.3,1812.2,5.76640673]
[1746656183761,5.96770394,1812.3,1812.2,4.66294673]
[1746656183949,5.96770394,1812.3,1812.2,1.45514673]
[1746656184349,5.96770394,1812.3,1812.2,0.73414274]
[1746656185048,1.10358,1812.0,1811.9,1.10361]
[1746656185253,1.10369,1811.9,1811.8,1.10364]
[1746656185463,2.72689,1811.9,1811.8,2.55743603]
[1746656185761,2.72689,1811.9,1811.8,1.82363279]
[1746656185955,1.6232,1811.9,1811.8,1.82363279]
[1746656186260,1.6232,1811.9,1811.8,2.55708573]
[1746656186661,1.6232,1811.9,1811.8,2.55701795]
[1746656186958,1.6232,1811.9,1811.8,1.82363279]
[1746656187662,1.9518,1812.2,1812.1,1.10352]
[1746656187959,1.9518,1812.2,1812.1,5.0438672]
[1746656187960,0.8483,1812.2,1812.1,5.0438672]
[1746656188160,1.95176,1812.2,1812.1,5.76385999]
[1746656188365,0.8483,1812.2,1812.1,5.76453782]
[1746656188755,1.95176,1812.2,1812.1,5.76453782]
[1746656188956,0.8483,1812.2,1812.1,5.76453782]
[1746656189255,1.95176,1812.2,1812.1,5.76453782]
[1746656189453,2.6156,1812.2,1812.1,5.76453782]
[1746656189766,6.92706394,1812.2,1812.1,5.76453782]
[1746656189955,6.92706394,1812.2,1812.1,2.55673782]
[1746656190660,6.92706394,1812.2,1812.1,1.83674503]
[1746656191064,6.92706394,1812.2,1812.1,0.73322503]
[1746656192158,6.92706394,1812.2,1812.1,1.83674503]
[1746656192661,6.92706394,1812.2,1812.1,0.73322503]
[1746656193565,6.92706394,1812.2,1812.1,1.83674503]
[1746656194061,6.92706394,1812.2,1812.1,1.83636513]
[1746656196261,6.92706394,1812.2,1812.1,0.73284513]
[1746656196454,6.92706394,1812.2,1812.1,1.83636513]
[1746656197661,6.92706394,1812.2,1812.1,1.83570528]
[1746656197862,6.92706394,1812.2,1812.1,0.73218528]
[1746656198264,6.92706394,1812.2,1812.1,1.83570528]
[1746656198567,6.92706394,1812.2,1812.1,0.73218528]
[1746656199463,1.10352,1812.1,1812.0,4.31132]
[1746656199662,6.00532394,1812.1,1812.0,5.04318461]
[1746656200665,6.00532394,1812.1,1812.0,5.04317869]
[1746656200859,6.00532394,1812.1,1812.0,4.31132]
[1746656201366,6.00532394,1812.1,1812.0,5.0431297]
[1746656202967,6.00532394,1812.1,1812.0,4.31132]
[1746656203972,6.00532394,1812.1,1812.0,5.04379135]
[1746656204870,6.00532394,1812.1,1812.0,5.76259628]
[1746656205369,1.6938,1812.1,1812.0,5.76293337]
[1746656205562,2.79732,1812.1,1812.0,5.76293337]
[1746656205761,1.6938,1812.1,1812.0,5.76293337]
[1746656205957,1.6938,1812.1,1812.0,7.26693337]
[1746656206580,2.79732,1812.1,1812.0,7.26693337]
[1746656207164,2.79732,1812.1,1812.0,1.45161337]
[1746656207464,6.00532394,1812.1,1812.0,1.45173462]
[1746656207665,6.00532394,1812.1,1812.0,0.73292969]
[1746656209174,1.10358,1812.0,1811.9,1.10363]
[1746656209373,6.02058394,1812.0,1811.9,1.83581555]
[1746656209566,6.02058394,1812.0,1811.9,2.55441706]
[1746656210575,6.02058394,1812.0,1811.9,1.45078706]
[1746656210977,6.02058394,1812.0,1811.9,1.45097707]
[1746656211177,6.02058394,1812.0,1811.9,0.73237556]
[1746656212677,2.81258,1812.0,1811.9,0.73237556]
[1746656212975,1.10364,1811.9,1811.8,3.2078]
[1746656213176,6.92074394,1811.9,1811.8,3.93961593]
[1746656213779,6.92074394,1811.9,1811.8,0.73181593]
[1746656214382,1.1037,1811.8,1811.7,1.10376]
[1746656214575,6.94730394,1811.8,1811.7,0.73155396]
[1746656214877,1.10376,1811.7,1811.6,3.2078]
[1746656215073,6.03376394,1811.7,1811.6,3.93956434]
[1746656215274,6.03376394,1811.7,1811.6,0.73176434]
[1746656215474,1.10389,1811.5,1811.4,4.3117]
[1746656215677,1.10389,1811.5,1811.4,5.761314]
[1746656216071,1.7134,1811.5,1811.4,5.761314]
[1746656216378,2.81729,1811.5,1811.4,5.761314]
[1746656216580,1.7134,1811.5,1811.4,5.761314]
[1746656217281,2.81729,1811.5,1811.4,5.761314]
[1746656217473,2.81729,1811.5,1811.4,5.04314307]
[1746656218386,2.81729,1811.5,1811.4,5.04136211]
[1746656221583,2.81729,1811.5,1811.4,5.04114414]
[1746656222577,6.02529394,1811.5,1811.4,3.93724414]
[1746656223370,6.91819394,1811.5,1811.4,3.2078]
[1746656223983,6.91819394,1811.5,1811.4,4.31175]
[1746656225775,6.91819394,1811.5,1811.4,3.2078]
[1746656225976,4.92140394,1811.5,1811.4,4.31175]
[1746656226181,2.81729,1811.5,1811.4,4.31175]
[1746656226378,2.81729,1811.5,1811.4,5.04074827]
[1746656227185,2.81729,1811.5,1811.4,5.04064391]
[1746656227686,1.7134,1811.5,1811.4,5.04064391]
[1746656228685,2.81729,1811.5,1811.4,5.04064391]
[1746656230387,6.02529394,1811.5,1811.4,5.04064391]
[1746656230588,1.10401,1811.3,1811.2,3.2078]
[1746656230789,4.31201394,1811.3,1811.2,5.04140016]
[1746656230986,1.10401,1811.3,1811.2,4.31183]
[1746656231186,2.88271,1811.3,1811.2,4.31183]
[1746656231788,6.09071394,1811.3,1811.2,4.31183]
[1746656231993,6.96361394,1811.3,1811.2,3.2078]
[1746656232292,6.96361394,1811.3,1811.2,4.31187]
[1746656233586,6.96361394,1811.3,1811.2,3.2078]
[1746656234483,2.6516,1811.3,1811.2,4.31187]
[1746656234691,1.7787,1811.3,1811.2,5.04101718]
[1746656235094,2.88271,1811.3,1811.2,5.04101718]
[1746656235291,6.09071394,1811.3,1811.2,5.04101718]
[1746656235794,6.09071394,1811.3,1811.2,3.93694718]
[1746656235994,6.09071394,1811.3,1811.2,5.04101718]
[1746656236396,6.09071394,1811.3,1811.2,5.04177189]
[1746656237797,7.00871394,1811.3,1811.2,3.93770189]
[1746656238190,7.00871394,1811.3,1811.2,3.93768948]
[1746656238498,7.00871394,1811.3,1811.2,5.04175948]
[1746656239398,7.00871394,1811.3,1811.2,3.93768948]
[1746656240097,7.00871394,1811.3,1811.2,3.93784551]
[1746656240401,7.00871394,1811.3,1811.2,5.04191551]
[1746656241898,7.00871394,1811.3,1811.2,5.0420416]
[1746656242600,7.00871394,1811.3,1811.2,3.9379716]
[1746656243800,7.00871394,1811.3,1811.2,3.93818761]
[1746656245503,7.00871394,1811.3,1811.2,5.04225761]
[1746656246097,7.00871394,1811.3,1811.2,3.93818761]
[1746656246804,7.00871394,1811.3,1811.2,5.04225761]
[1746656247804,7.00871394,1811.3,1811.2,3.93818761]
[1746656247996,7.00871394,1811.3,1811.2,3.9384095]
[1746656248192,7.00871394,1811.3,1811.2,3.93841035]
[1746656248507,7.00871394,1811.3,1811.2,3.93844454]
[1746656248706,7.00871394,1811.3,1811.2,0.73064441]
[1746656249909,1.10413,1811.1,1811.0,1.10418]